bitfinex/quotes_ETHUSD_20240607
["timestamp","ask_amount","ask_price","bid_price","bid_amount"]
[1717759584624,2.62152,3814.6,3814.5,8.45426402]
[1717759585700,2.62152,3814.6,3814.5,5.83269402]
[1717759586691,4.88502,3814.6,3814.5,2.66112402]
[1717759587602,2.62152,3814.6,3814.5,2.66112402]
[1717759588504,2.62152,3814.6,3814.5,5.28269402]
[1717759588700,2.62152,3814.6,3814.5,5.83269402]
[1717759592629,2.62152,3814.6,3814.5,6.38080981]
[1717759593831,2.62152,3814.6,3814.5,9.00237981]
[1717759594122,2.62152,3814.6,3814.5,8.45426402]
[1717759594298,2.62152,3814.6,3814.5,5.83269402]
[1717759594500,2.62152,3814.6,3814.5,6.62069402]
[1717759594725,2.62152,3814.6,3814.5,9.24226402]
[1717759594920,2.62152,3814.6,3814.5,11.88648052]
[1717759598931,2.62152,3814.6,3814.5,13.42570684]
[1717759599233,2.62152,3814.6,3814.5,14.52193842]
[1717759600231,2.62152,3814.6,3814.5,13.42570684]
[1717759603639,2.62152,3814.6,3814.5,12.63770684]
[1717759603843,2.62152,3814.6,3814.5,7.65473684]
[1717759604145,2.62152,3814.6,3814.5,11.06430684]
[1717759605405,2.62152,3814.6,3814.5,12.16053842]
[1717759607130,2.62152,3814.6,3814.5,15.16053842]
[1717759607318,2.62152,3814.6,3814.5,14.06430684]
[1717759610317,2.62103,3815.3,3815.2,5.24218]
[1717759610621,2.62103,3815.3,3815.2,6.61915419]
[1717759610800,2.62103,3815.3,3815.2,9.24024419]
[1717759611004,2.62103,3815.3,3815.2,9.78797424]
[1717759612431,2.62103,3815.3,3815.2,9.78777225]
[1717759614443,4.92223,3815.3,3815.2,8.99977225]
[1717759614832,4.92223,3815.3,3815.2,8.45224419]
[1717759616452,4.92223,3815.3,3815.2,5.83115419]
[1717759620444,2.62103,3815.3,3815.2,6.61915419]
[1717759623179,2.62103,3815.3,3815.2,5.83115419]
[1717759623397,2.62103,3815.3,3815.2,6.37858501]
[1717759623998,2.62103,3815.3,3815.2,5.83115419]
[1717759625881,2.62103,3815.3,3815.2,6.37858501]
[1717759626744,2.62103,3815.3,3815.2,7.16658501]
[1717759633099,2.62103,3815.3,3815.2,9.78767501]
[1717759633451,2.62103,3815.3,3815.2,13.76631616]
[1717759633683,2.62103,3815.3,3815.2,14.55431616]
[1717759633869,2.62103,3815.3,3815.2,13.45885606]
[1717759634269,2.62103,3815.3,3815.2,14.55356807]
[1717759634483,2.62103,3815.3,3815.2,17.55356807]
[1717759635991,2.62103,3815.3,3815.2,16.76556807]
[1717759636188,4.95663,3815.3,3815.2,14.36856807]
[1717759636428,4.95663,3815.3,3815.2,13.81856807]
[1717759636590,4.95663,3815.3,3815.2,10.90224419]
[1717759637674,4.95663,3815.3,3815.2,11.45224419]
[1717759638581,4.95663,3815.3,3815.2,11.99983131]
[1717759639599,4.95663,3815.3,3815.2,8.99983131]
[1717759641502,4.95663,3815.3,3815.2,9.78783131]
[1717759641799,4.95663,3815.3,3815.2,9.24024419]
[1717759642966,2.62103,3815.3,3815.2,9.24024419]
[1717759644503,2.62103,3815.3,3815.2,11.06207945]
[1717759644698,2.62103,3815.3,3815.2,12.15679146]
[1717759646099,2.62103,3815.3,3815.2,11.06207945]
[1717759646268,2.62103,3815.3,3815.2,12.15679146]
[1717759647526,2.62103,3815.3,3815.2,11.36879146]
[1717759647725,2.62103,3815.3,3815.2,12.15679146]
[1717759651396,2.62103,3815.3,3815.2,11.06207945]
[1717759653191,2.62103,3815.3,3815.2,10.27407945]
[1717759653389,2.62103,3815.3,3815.2,12.15865277]
[1717759654823,2.62103,3815.3,3815.2,11.06207945]
[1717759655604,2.62103,3815.3,3815.2,10.27407945]
[1717759655808,2.62103,3815.3,3815.2,11.06207945]
[1717759659820,2.62103,3815.3,3815.2,12.43199799]
[1717759660149,2.62103,3815.3,3815.2,16.55857945]
[1717759660320,2.62103,3815.3,3815.2,18.83548393]
[1717759663857,2.62103,3815.3,3815.2,18.04748393]
[1717759664157,2.62103,3815.3,3815.2,18.83548393]
[1717759665371,2.62103,3815.3,3815.2,21.45657393]
[1717759671849,2.55551661,3815.3,3815.2,21.45657393]
[1717759672451,2.62074,3815.8,3815.7,7.86225]
[1717759672675,2.62074,3815.8,3815.7,11.88214137]
[1717759676664,2.62074,3815.8,3815.7,11.09414137]
[1717759676870,2.62074,3815.8,3815.7,11.88214137]
[1717759677486,2.3546,3816.2,3816.1,7.86141]
[1717759677642,2.3546,3816.2,3816.1,9.74704149]
[1717759677844,2.3546,3816.2,3816.1,9.23782984]
[1717759680288,2.3546,3816.2,3816.1,5.82935984]
[1717759680457,2.59006,3816.2,3816.1,0.03841984]
[1717759680653,2.59006,3816.2,3815.9,3.16819149]
[1717759680853,2.59006,3816.2,3816.1,2.62047]
[1717759681167,2.59006,3816.2,3816.1,0.03709591]
[1717759681518,2.4027,3816.1,3815.4,7.43]
[1717759681687,2.661706,3816.1,3815.4,7.43]
[1717759682338,2.661706,3816.1,3815.5,2.62083]
[1717759682537,2.661706,3816.1,3815.7,2.6207]
[1717759684261,2.3968,3815.9,3815.7,2.6207]
[1717759685373,3.1089,3815.8,3815.1,0.54763149]
[1717759685585,2.3209,3815.7,3815.1,2.6211]
[1717759688354,2.3209,3815.7,3814.8,0.54763149]
[1717759688554,2.3209,3815.7,3814.7,0.54763149]
[1717759688555,2.3704,3815.6,3814.7,0.54763149]
[1717759688770,2.4838,3815.4,3814.7,0.54763149]
[1717759689017,2.4838,3815.4,3814.5,8.25144724]
[1717759689018,2.4838,3815.4,3814.5,8.76563149]
[1717759689195,2.4838,3815.4,3814.6,0.55]
[1717759689518,2.4838,3815.4,3815.0,2.62118]
[1717759689696,2.8603953,3815.4,3815.2,2.62105]
[1717759690258,2.8603953,3815.4,3814.6,0.54763149]
[1717759690259,2.3628,3815.4,3814.6,0.54763149]
[1717759690861,2.3628,3815.4,3814.5,1.33563149]
[1717759691268,2.3628,3815.4,3814.9,2.62128]
[1717759691995,2.3628,3815.4,3815.0,0.03635384]
[1717759692186,2.7272953,3815.4,3815.0,0.03635384]
[1717759694119,2.7272953,3815.4,3815.1,2.62114]
[1717759694496,2.7272953,3815.4,3815.2,0.03633271]
[1717759697390,2.7272953,3815.4,3815.0,2.62122]
[1717759697588,2.7272953,3815.4,3815.3,0.03635737]
[1717759697824,2.7272953,3815.4,3815.0,2.62122]
[1717759698149,2.3628,3815.4,3815.0,2.62122]
[1717759698307,2.3628,3815.4,3815.1,0.03639107]
[1717759698684,2.3628,3815.4,3814.3,3.54763149]
[1717759698685,2.4111,3815.5,3815.2,0.03516748]
[1717759698889,0.494153,3815.6,3815.2,0.03516748]
[1717759698890,5.74582,3815.3,3815.2,0.03516748]
[1717759699134,2.62133,3814.9,3814.1,7.43]
[1717759699302,2.3368,3814.4,3814.0,2.62189]
[1717759699624,2.3368,3814.4,3814.2,0.0304834]
[1717759699828,2.435,3814.2,3814.1,0.03049396]
[1717759700028,2.435,3814.2,3813.8,2.62199]
[1717759700193,2.435,3814.2,3814.1,0.03049396]
[1717759700395,2.435,3814.2,3813.8,2.62199]
[1717759700714,2.435,3814.2,3813.6,2.62213]
[1717759700912,3.050709,3814.2,3813.9,0.0305151]
[1717759701125,3.050709,3814.2,3813.3,7.43]
[1717759701126,0.788,3814.1,3813.3,10.05234]
[1717759701422,2.2835,3813.8,3812.9,1.33563149]
[1717759701631,2.2835,3813.8,3812.9,0.788]
[1717759701800,2.2835,3813.8,3813.1,0.788]
[1717759701999,2.2835,3813.8,3812.7,8.479334]
[1717759702218,2.62191,3814.1,3813.3,0.788]
[1717759702389,2.62191,3814.1,3813.5,0.788]
[1717759702791,2.62191,3814.1,3813.8,2.62201]
[1717759706328,2.62191,3814.1,3814.0,2.62191]
[1717759706727,2.62191,3814.1,3814.0,2.65140805]
[1717759709137,2.62191,3814.1,3814.0,0.02949805]
[1717759709291,2.884101,3814.1,3814.0,0.02949805]
[1717759709490,2.884101,3814.1,3813.8,2.62199]
[1717759709691,2.884101,3814.1,3814.0,0.02949805]
[1717759709932,2.884101,3814.1,3813.9,0.02950862]
[1717759710100,2.884101,3814.1,3813.6,2.62213]
[1717759710300,0.6160601,3814.0,3813.6,2.62213]
[1717759712321,1.4040601,3814.0,3813.6,2.62213]
[1717759714238,0.6160601,3814.0,3813.6,2.62213]
[1717759720751,0.6160601,3814.0,3813.8,2.62203]
[1717759722037,0.6160601,3814.0,3813.9,0.02977255]
[1717759723055,2.62191,3814.1,3814.0,2.62191]
[1717759723417,2.62191,3814.1,3814.0,2.65192333]
[1717759725124,2.62191,3814.1,3814.0,3.98992333]
[1717759725330,2.62191,3814.1,3814.0,2.65192333]
[1717759757166,2.62191,3814.1,3814.0,0.03001333]
[1717759759165,2.62191,3814.1,3813.7,0.54763149]
[1717759759360,2.62191,3814.1,3814.0,0.02390289]
[1717759759361,3.111441,3814.1,3814.0,0.02390289]
[1717759759555,3.111441,3814.1,3813.6,0.54763149]
[1717759759784,3.111441,3814.1,3814.0,0.02390289]
[1717759759986,3.111441,3814.1,3813.6,0.54763149]
[1717759760181,3.111441,3814.1,3814.0,0.02390289]
[1717759760505,3.111441,3814.1,3813.7,2.62211]
[1717759760696,2.62191,3814.1,3813.7,2.62211]
[1717759760867,2.62191,3814.1,3813.7,3.16974149]
[1717759761063,2.62191,3814.1,3813.8,0.02392403]
[1717759767596,3.40991,3814.1,3813.5,0.54763149]
[1717759767817,3.40991,3814.1,3813.9,0.02391346]
[1717759767818,0.568331,3814.0,3813.9,0.02391346]
[1717759768508,0.568331,3814.0,3813.9,0.02396343]
[1717759768716,0.568331,3814.0,3813.5,0.54763149]
[1717759769026,0.568331,3814.0,3813.6,0.02399514]
[1717759770339,0.34690062,3813.9,3813.6,0.02399514]
[1717759771108,0.568331,3814.0,3813.6,0.02399514]
[1717759773173,1.318331,3814.0,3813.6,0.02399514]
[1717759774279,0.568331,3814.0,3813.6,0.02399514]
[1717759778177,1.318331,3814.0,3813.6,0.02399514]
[1717759778377,1.318331,3814.0,3813.6,2.64617514]
[1717759783096,3.2433541,3813.9,3813.6,0.02399514]
[1717759783255,0.788,3813.7,3813.6,0.02399514]
[1717759783586,2.4372,3813.8,3813.6,0.02399514]
[1717759783755,3.41012,3813.7,3813.6,0.02399514]
[1717759783958,3.41012,3813.7,3812.9,4.44564773]
[1717759783959,3.97703103,3813.7,3813.1,0.54763149]
[1717759784183,3.97703103,3813.7,3812.9,5.26709497]
[1717759784184,0.6414231,3813.6,3813.2,0.02339761]
[1717759784355,0.70556541,3813.5,3813.0,0.54763149]
[1717759784685,0.70556541,3813.5,3813.1,0.0250802]
[1717759785347,2.4166,3813.4,3813.1,0.0250802]
[1717759785556,0.75,3813.2,3812.9,0.54763149]
[1717759787333,0.75,3813.2,3812.8,0.54763149]
[1717759789517,0.75,3813.2,3812.7,3.17037149]
[1717759790018,1.538,3813.2,3812.7,2.62274]
[1717759796826,0.75,3813.2,3812.8,0.02378198]
[1717759797130,0.75,3813.2,3812.7,2.62274]
[1717759797305,0.75,3813.2,3812.9,0.02377141]
[1717759797508,0.75,3813.2,3812.8,0.02378198]
[1717759797820,0.75,3813.2,3813.0,0.02376083]
[1717759798033,0.75,3813.2,3812.7,2.62274]
[1717759798227,0.75,3813.2,3813.1,0.02375026]
[1717759798406,1.40769,3813.2,3812.7,2.62274]
[1717759798608,0.75,3813.2,3813.1,0.02375026]
[1717759798802,0.75,3813.2,3812.7,2.62274]
[1717759799014,0.75,3813.2,3813.1,0.02375026]
[1717759799818,0.75,3813.2,3812.7,2.62274]
[1717759800021,0.75,3813.2,3813.1,0.02375026]
[1717759811319,2.19569,3813.2,3813.1,0.02375026]
[1717759811653,4.45979,3813.2,3813.1,0.02375026]
[1717759813475,7.08225,3813.2,3813.1,0.02375026]
[1717759813833,7.64923929,3813.2,3813.1,0.02375026]
[1717759817495,2.62265,3813.0,3812.3,2.62305]
[1717759817697,3.41065,3813.0,3812.3,2.62305]
[1717759817899,3.41065,3813.0,3812.4,0.02393918]
[1717759824295,2.62265,3813.0,3812.4,0.02393918]
[1717759824474,2.62265,3813.0,3812.4,0.57157067]
[1717759827400,2.62265,3813.0,3812.5,0.54763149]
[1717759827596,2.62265,3813.0,3812.5,0.57161505]
[1717759829668,2.62265,3813.0,3812.6,0.54763149]
[1717759830003,2.62265,3813.0,3812.7,0.02395991]
[1717759833704,2.62265,3813.0,3812.5,0.54763149]
[1717759833872,2.62265,3813.0,3812.8,0.02395433]
[1717759834068,2.62265,3813.0,3812.5,0.54763149]
[1717759834269,2.62265,3813.0,3812.9,0.02394376]
[1717759834477,2.62265,3813.0,3812.6,0.54763149]
[1717759834683,2.62265,3813.0,3812.9,0.02394376]
[1717759834883,2.62265,3813.0,3812.6,0.54763149]
[1717759835093,2.62265,3813.0,3812.9,0.02396124]
[1717759835296,2.62265,3813.0,3812.6,0.54763149]
[1717759835806,2.62265,3813.0,3812.7,0.02398239]
[1717759838975,2.62265,3813.0,3812.5,3.17056149]
[1717759839174,2.62265,3813.0,3812.8,0.02897394]
[1717759839397,2.62265,3813.0,3812.5,3.17056149]
[1717759839711,2.62265,3813.0,3812.9,0.02896072]
[1717759839867,2.62265,3813.0,3812.5,3.17056149]
[1717759840071,2.62265,3813.0,3812.9,0.02896072]
[1717759840282,3.09541465,3813.0,3812.5,0.54763149]
[1717759840473,4.99305,3813.0,3812.9,0.02896072]
[1717759840699,4.99305,3813.0,3812.5,0.54763149]
[1717759841195,5.56004653,3813.0,3812.6,0.02900038]
[1717759841398,0.788,3812.9,3812.6,0.02900038]
[1717759842572,1.3550205,3812.9,3812.6,0.02900038]
[1717759844718,0.788,3812.9,3812.6,0.02900038]
[1717759845123,0.5670244,3812.9,3812.6,0.02900038]
[1717759845422,4.99305,3813.0,3812.6,0.02900038]
[1717759846376,4.99305,3813.0,3812.4,0.54763149]
[1717759846576,4.99305,3813.0,3812.7,0.02900276]
[1717759846875,4.99305,3813.0,3812.4,0.54763149]
[1717759847115,4.99305,3813.0,3812.8,0.02898642]
[1717759847357,4.99305,3813.0,3812.4,0.54763149]
[1717759847564,4.99305,3813.0,3812.9,0.0289732]
[1717759847720,4.99305,3813.0,3812.5,0.54763149]
[1717759847916,2.62265,3813.0,3812.9,0.0289732]
[1717759848119,2.62265,3813.0,3812.6,2.4903]
[1717759848323,2.62265,3813.0,3812.9,0.0289857]
[1717759848559,2.62265,3813.0,3812.9,0.54763149]
[1717759848739,2.62265,3813.0,3812.9,0.57661719]
[1717759849417,2.62265,3813.0,3812.9,0.0289857]
[1717759850238,6.25151081,3813.0,3812.9,0.0289857]
[1717759850440,5.46351081,3813.0,3812.9,0.0289857]
[1717759850634,5.46351081,3813.0,3812.6,3.17050149]
[1717759850863,5.46351081,3813.0,3812.9,0.02675603]
[1717759851076,5.46351081,3813.0,3812.5,3.17057149]
[1717759851272,6.0305283,3813.0,3812.9,0.03157652]
[1717759851445,6.0305283,3813.0,3812.5,3.17057149]
[1717759851646,0.788,3812.9,3812.5,3.17057149]
[1717759852377,2.62265,3813.0,3812.5,3.17057149]
[1717759852940,2.62265,3813.0,3812.6,0.54763149]
[1717759856489,2.62265,3813.0,3812.7,2.6228]
[1717759857071,3.41065,3813.0,3812.7,2.6228]
[1717759857437,2.62265,3813.0,3812.7,2.6228]
[1717759858265,2.62265,3813.0,3812.6,3.17050149]
[1717759861343,2.62265,3813.0,3812.8,2.62273]
[1717759863604,2.62265,3813.0,3812.8,4.96993]
[1717759864115,2.62265,3813.0,3812.9,0.54763149]
[1717759864411,2.62265,3813.0,3812.8,5.51756149]
[1717759870726,2.62265,3813.0,3812.8,3.17036149]
[1717759872225,2.62265,3813.0,3812.8,3.95836149]
[1717759872529,2.62265,3813.0,3812.8,3.17036149]
[1717759873229,2.62265,3813.0,3812.8,6.58109149]
[1717759873409,2.62265,3813.0,3812.9,3.50963149]
[1717759873604,2.62265,3813.0,3812.9,2.962]
[1717759875435,2.62265,3813.0,3812.9,3.51155495]
[1717759876242,2.62265,3813.0,3812.9,4.29955495]
[1717759876803,2.62265,3813.0,3812.9,3.75]
[1717759877211,2.62265,3813.0,3812.9,4.29949817]
[1717759879758,2.62265,3813.0,3812.9,3.51149817]
[1717759886628,2.62265,3813.0,3812.9,4.29949817]
[1717759887046,2.62265,3813.0,3812.9,3.51149817]
[1717759892374,2.62265,3813.0,3812.9,4.29949817]
[1717759892731,2.62265,3813.0,3812.9,3.51149817]
[1717759893132,2.62265,3813.0,3812.9,1.09949817]
[1717759900589,2.62265,3813.0,3812.9,1.338]
[1717759901001,2.62265,3813.0,3812.9,3.16088686]
[1717759901161,2.62265,3813.0,3812.9,4.25634558]
[1717759902584,2.62265,3813.0,3812.9,5.84174558]
[1717759902801,2.62265,3813.0,3812.9,6.62974558]
[1717759904876,2.62265,3813.0,3812.9,5.84174558]
[1717759905079,2.62265,3813.0,3812.9,6.62974558]
[1717759905279,2.62265,3813.0,3812.9,5.53428686]
[1717759905508,2.62265,3813.0,3812.9,6.62974558]
[1717759907384,2.62265,3813.0,3812.9,5.53428686]
[1717759907784,2.62265,3813.0,3812.9,6.62974558]
[1717759910312,3.37191,3814.1,3813.8,7.86615]
[1717759910486,3.37191,3814.1,3814.0,6.58097605]
[1717759910487,2.62191,3814.1,3814.0,6.58097605]
[1717759910687,2.62191,3814.1,3814.0,6.03182]
[1717759910921,2.62191,3814.1,3814.0,9.22792805]
[1717759911284,2.62191,3814.1,3814.0,6.58182]
[1717759911908,2.62191,3814.1,3814.0,5.79382]
[1717759912309,2.62191,3814.1,3814.0,6.34236978]
[1717759913290,2.62191,3814.1,3814.0,5.79382]
[1717759917119,2.62117,3815.1,3814.0,12.30478985]
[1717759917304,6.9e-07,3814.3,3814.2,13.9936321]
[1717759917504,2.62117,3815.1,3815.0,2.62123]
[1717759917681,2.62117,3815.1,3815.0,3.17123]
[1717759918412,2.62117,3815.1,3815.0,3.95923]
[1717759918613,2.62117,3815.1,3815.0,3.17123]
[1717759919232,2.62117,3815.1,3815.0,3.95923]
[1717759920142,2.62117,3815.1,3815.0,6.58046]
[1717759920551,2.62117,3815.1,3815.0,5.79246]
[1717759920998,2.62117,3815.1,3815.0,3.17123]
[1717759923543,2.62117,3815.1,3815.0,5.79246]
[1717759923716,2.62117,3815.1,3815.0,9.52819405]
[1717759925240,2.62117,3815.1,3815.0,12.14942405]
[1717759925896,2.62117,3815.1,3815.0,11.40819405]
[1717759926093,2.62117,3815.1,3815.0,14.02942405]
[1717759927141,2.62117,3815.1,3815.0,12.14942405]
[1717759928133,2.62117,3815.1,3815.0,9.52819405]
[1717759928313,2.62117,3815.1,3815.0,8.79246]
[1717759928713,2.62117,3815.1,3815.0,11.41369]
[1717759930927,2.3463,3815.9,3815.8,2.62068]
[1717759932210,2.3203,3815.9,3815.8,2.62068]
[1717759935325,2.31189066,3815.9,3815.8,5.24136]
[1717759938375,2.6206,3816.0,3815.8,5.24136]
[1717759938575,5.00198,3816.1,3815.8,5.24136]
[1717759938576,2.62048,3816.1,3815.8,5.24136]
[1717759938936,2.62048,3816.1,3816.0,5.24108]
[1717759942204,2.62048,3816.1,3816.0,8.77409044]
[1717759943939,2.62048,3816.1,3816.0,8.41162]
[1717759944866,2.62048,3816.1,3816.0,7.86162]
[1717759946952,2.62048,3816.1,3816.0,5.24108]
[1717759947154,2.62048,3816.1,3816.0,2.62054]
[1717759948589,2.62048,3816.1,3816.0,6.02408]
[1717759948877,2.62048,3816.1,3816.0,5.24108]
[1717759949381,2.62048,3816.1,3816.0,2.62054]
[1717759953703,2.62048,3816.1,3816.0,5.24108]
[1717759953912,2.62048,3816.1,3816.0,6.57408]
[1717759956001,2.62048,3816.1,3816.0,5.79108]
[1717759956309,2.62048,3816.1,3816.0,6.57408]
[1717759957906,2.62048,3816.1,3816.0,9.19462]
[1717759958618,2.62048,3816.1,3816.0,7.12069652]
[1717759958919,2.62048,3816.1,3816.0,6.57408]
[1717759959117,2.62048,3816.1,3816.0,9.19462]
[1717759959616,2.62048,3816.1,3816.0,6.57408]
[1717759961029,2.62048,3816.1,3816.0,5.79108]
[1717759962845,2.3387,3816.3,3816.0,2.62054]
[1717759963146,2.57257,3816.3,3816.0,2.62054]
[1717759963703,2.4097,3816.5,3816.2,2.62039]
[1717759963922,0.75,3816.4,3816.3,2.62033]
[1717759964242,2.4097,3816.5,3816.3,2.62033]
[1717759964944,2.4088638,3816.5,3816.3,2.62033]
[1717759966246,3.1588638,3816.5,3816.3,2.62033]
[1717759966543,3.47475018,3816.5,3816.3,2.62033]
[1717759966746,3.1588638,3816.5,3816.4,0.783]
[1717759966916,0.0609759,3817.2,3816.9,2.6199]
[1717759967318,0.75,3817.0,3816.9,2.6199]
[1717759967934,3.0751,3817.0,3816.9,2.6199]
[1717759972763,0.75,3817.0,3816.9,2.6199]
[1717759979894,0.0609759,3817.2,3816.9,2.6199]
[1717759981368,0.0609759,3817.2,3816.9,5.23982]
[1717759983711,0.0609759,3817.2,3816.9,7.73022]
[1717759984677,0.0609759,3817.2,3817.1,2.61978]
[1717759985564,0.0609759,3817.2,3817.1,5.23956]
[1717759986285,0.0609759,3817.2,3817.1,7.85934]
[1717759986495,0.0609759,3817.2,3817.1,8.40934]
[1717759986689,0.0609759,3817.2,3817.1,8.64234]
[1717759987393,0.0609759,3817.2,3817.1,9.19234]
[1717759987578,0.0609759,3817.2,3817.1,11.31447156]
[1717759987779,0.0609759,3817.2,3817.1,14.32053086]
[1717759988009,0.0609759,3817.2,3817.1,16.50060607]
[1717759988429,0.0609759,3817.2,3817.1,17.59383912]
[1717759989398,0.0609759,3817.2,3817.1,17.28360607]
[1717759989585,0.0609759,3817.2,3817.1,17.59166779]
[1717759990126,0.0609759,3817.2,3817.1,18.68490084]
[1717759990286,2.36630085,3817.4,3817.3,10.13325]
[1717759990485,2.36630085,3817.4,3817.3,14.49141632]
[1717759990885,2.36630085,3817.4,3817.3,15.03810216]
[1717759992288,2.36630085,3817.4,3817.3,14.49141632]
[1717759993665,2.36630085,3817.4,3817.3,14.07708476]
[1717759993938,2.36630085,3817.4,3817.3,13.68325]
[1717759994288,2.36630085,3817.4,3817.3,14.13978476]
[1717759994492,2.36630085,3817.4,3817.3,14.55411632]
[1717759994734,2.0244883,3817.4,3817.3,14.55411632]
[1717759995439,2.61937,3817.8,3817.5,5.239]
[1717759995595,2.61937,3817.8,3817.7,7.85811]
[1717759995997,2.61937,3817.8,3817.7,8.40811]
[1717759997577,2.61937,3817.8,3817.7,11.40811]
[1717760001492,2.61937,3817.8,3817.7,8.23874]
[1717760002573,2.61937,3817.8,3817.7,2.61937]
[1717760003357,3.40237,3817.8,3817.7,2.61937]
[1717760004751,2.61937,3817.8,3817.7,5.23874]
[1717760004991,3.40237,3817.8,3817.7,7.85811]
[1717760005289,3.40237,3817.8,3817.7,8.40811]
[1717760005490,3.40237,3817.8,3817.7,7.85811]
[1717760006295,2.61937,3817.8,3817.7,7.85811]
[1717760006459,3.40237,3817.8,3817.7,7.85811]
[1717760006660,3.40237,3817.8,3817.7,5.23874]
[1717760008582,5.06615,3818.7,3818.6,2.61876]
[1717760008751,5.84915,3818.7,3818.6,2.61876]
[1717760013606,5.06615,3818.7,3818.6,2.61876]
[1717760013764,5.84915,3818.7,3818.6,2.61876]
[1717760016470,5.84915,3818.7,3818.5,2.61882]
[1717760016799,0.783,3818.6,3818.5,2.61882]
[1717760019063,2.61875,3818.7,3818.5,5.23764]
[1717760019262,0.783,3818.6,3818.5,5.23764]
[1717760021117,2.61875,3818.7,3818.5,5.23764]
[1717760021118,2.61875,3818.7,3818.6,2.3837]
[1717760021405,2.61875,3818.7,3818.6,5.3837]
[1717760021762,2.61875,3818.7,3818.6,6.76711632]
[1717760022708,2.61837,3819.2,3819.0,5.23696]
[1717760022907,0.783,3819.1,3819.0,5.23696]
[1717760023077,2.61837,3819.2,3819.0,5.23696]
[1717760023259,0.783,3819.1,3819.0,5.23696]
[1717760024023,2.61837,3819.2,3819.0,6.07037632]
[1717760024221,2.61837,3819.2,3819.1,0.41433156]
[1717760024508,2.61837,3819.2,3819.1,0.83341632]
[1717760024713,2.61837,3819.2,3819.1,3.20001632]
[1717760024872,2.61837,3819.2,3819.0,5.23696]
[1717760024873,0.783,3819.2,3818.8,0.54668584]
[1717760025078,0.783,3818.9,3818.8,2.61862]
[1717760025273,2.4775,3819.6,3819.3,2.61826]
[1717760025509,0.783,3819.4,3819.3,2.61826]
[1717760027011,2.4775,3819.6,3819.3,2.61826]
[1717760027212,0.783,3819.4,3819.3,2.61826]
[1717760027588,2.4775,3819.6,3819.3,2.61826]
[1717760027789,0.783,3819.4,3819.3,2.61826]
[1717760027999,2.4775,3819.6,3819.3,2.61826]
[1717760028303,0.783,3819.4,3819.3,2.61826]
[1717760031206,2.4775,3819.6,3819.3,2.61826]
[1717760031410,0.783,3819.4,3819.3,2.61826]
[1717760032130,2.4775,3819.6,3819.3,2.61826]
[1717760032336,0.783,3819.4,3819.3,2.61826]
[1717760032535,2.61788,3819.9,3819.3,2.61826]
[1717760032707,2.61788,3819.9,3819.8,2.61793]
[1717760032898,3.40088,3819.9,3819.8,2.61793]
[1717760039905,2.61788,3819.9,3819.8,2.61793]
[1717760040106,3.40088,3819.9,3819.8,2.61793]
[1717760042316,2.61788,3819.9,3819.8,2.61793]
[1717760042505,3.40088,3819.9,3819.8,2.61793]
[1717760046944,2.61788,3819.9,3819.8,2.61793]
[1717760048022,2.61788,3819.9,3819.8,5.23586]
[1717760049425,3.40088,3819.9,3819.8,2.61793]
[1717760052911,2.61788,3819.9,3819.8,5.78586]
[1717760053432,2.61788,3819.9,3819.8,5.23586]
[1717760054511,2.61788,3819.9,3819.8,2.61793]
[1717760055150,2.290645,3819.9,3819.8,5.23586]
[1717760056264,2.290645,3819.9,3819.8,8.10396]
[1717760056972,2.290645,3819.9,3819.8,7.55396]
[1717760057332,2.290645,3819.9,3819.8,5.23586]
[1717760060901,3.073645,3819.9,3819.8,2.61793]
[1717760063883,2.290645,3819.9,3819.8,8.23446]
[1717760064286,3.073645,3819.9,3819.8,7.68446]
[1717760064487,3.073645,3819.9,3819.8,5.06653]
[1717760064661,3.073645,3819.9,3819.8,2.61793]
[1717760066173,2.290645,3819.9,3819.8,2.61793]
[1717760066387,3.073645,3819.9,3819.8,2.61793]
[1717760066701,3.073645,3819.9,3819.8,5.23586]
[1717760067286,2.290645,3819.9,3819.8,5.23586]
[1717760068374,2.290645,3819.9,3819.8,5.78254584]
[1717760068569,2.290645,3819.9,3819.8,5.23586]
[1717760069126,2.290645,3819.9,3819.8,5.78121817]
[1717760069278,2.290645,3819.9,3819.8,3.16328817]
[1717760069460,2.290645,3819.9,3819.8,5.23586]
[1717760071499,2.290645,3819.9,3819.8,6.28329]
[1717760071897,2.290645,3819.9,3819.8,6.82864817]
[1717760073117,2.290645,3819.9,3819.8,9.44657817]
[1717760073288,2.290645,3819.9,3819.8,6.28329]
[1717760074179,2.290645,3819.9,3819.8,8.90122]
[1717760074618,2.290645,3819.9,3819.8,6.28329]
[1717760075214,2.290645,3819.9,3819.8,8.90122]
[1717760075423,2.290645,3819.9,3819.8,6.28329]
[1717760076329,2.290645,3819.9,3819.8,8.9227336]
[1717760077319,2.290645,3819.9,3819.8,6.28329]
[1717760077835,2.290645,3819.9,3819.8,8.92274353]
[1717760078008,3.073645,3819.9,3819.8,6.28329]
[1717760078204,3.073645,3819.9,3819.8,6.30481618]
[1717760078393,3.073645,3819.9,3819.8,2.61793]
[1717760080164,3.8807435,3819.9,3819.5,2.6181]
[1717760080372,0.783,3819.6,3819.5,2.6181]
[1717760081253,0.783,3819.6,3819.2,0.5458216]
[1717760081423,0.783,3819.4,3819.0,0.5458216]
[1717760081760,0.783,3819.2,3819.0,2.61848]
[1717760083221,2.3439,3819.1,3819.0,2.61848]
[1717760087684,0.783,3819.1,3819.0,2.61848]
[1717760089278,0.783,3819.1,3818.2,3.0]
[1717760089279,2.4858,3819.0,3818.2,3.0]
[1717760089486,0.783,3818.3,3818.1,2.6191]
[1717760089687,2.4858,3819.0,3818.7,2.61862]
[1717760089851,0.783,3818.8,3818.7,2.61862]
[1717760091391,0.783,3818.8,3818.5,2.61877]
[1717760091597,0.783,3818.6,3818.5,2.61877]
[1717760092116,2.3175,3819.4,3819.0,2.61843]
[1717760092291,0.783,3819.1,3819.0,2.61843]